[Event "Torneo Nuevo Centro. Jornada 8"]
[Site "Chess.com"]
[Date "2020.08.07"]
[Round "6"]
[White "Yuste Valenzuela, Alejandro"]
[Black "Bascuñana Sánchez, Pablo"]
[Result "1-0"]
[WhiteElo "1873"]
[BlackElo "1656"]
[TimeControl "180+2"]
[EndTime "11:33:48 PDT"]
[Termination "Victoria de alejandrito290 por abandono"]

1. e4 {[%clk 0:03:01.9]} 1... c5 {[%clk 0:03:00.3]} 2. Nf3 {[%clk 0:03:01.9]}
2... g6 {[%clk 0:03:00.5]} 3. d4 {[%clk 0:03:02.7]} 3... cxd4 {[%clk 0:03:00.3]}
4. Nxd4 {[%clk 0:03:04]} 4... Bg7 {[%clk 0:03:00.1]} 5. Nc3 {[%clk 0:03:01.8]}
5... Nc6 {[%clk 0:03:00.6]} 6. Be3 {[%clk 0:03:03]} 6... Nf6 {[%clk 0:03:01]} 7.
Bc4 {[%clk 0:03:03.7]} 7... Qa5 {[%clk 0:03:01.8]} 8. O-O {[%clk 0:03:03.3]}
8... O-O {[%clk 0:03:01.7]} 9. Bb3 {[%clk 0:02:56.6]} 9... d6 {[%clk 0:02:59.8]}
10. h3 {[%clk 0:02:55.1]} 10... Qh5 {[%clk 0:02:56.7]} 11. Qxh5 {[%clk
0:02:50.3]} 11... Nxh5 {[%clk 0:02:54.7]} 12. Rad1 {[%clk 0:02:38.2]} 12... Nf6
{[%clk 0:02:45.3]} 13. f4 {[%clk 0:02:27.5]} 13... Nxd4 {[%clk 0:02:44.5]} 14.
Bxd4 {[%clk 0:02:29.4]} 14... a6 {[%clk 0:02:44.5]} 15. e5 {[%clk 0:02:23.9]}
15... dxe5 {[%clk 0:02:43.7]} 16. fxe5 {[%clk 0:02:25.8]} 16... Nd7 {[%clk
0:02:38.6]} 17. e6 {[%clk 0:02:22.3]} 17... Bxd4+ {[%clk 0:02:36.4]} 18. Rxd4
{[%clk 0:02:20.3]} 18... Ne5 {[%clk 0:02:34]} 19. exf7+ {[%clk 0:02:17.4]} 19...
Nxf7 {[%clk 0:02:34]} 20. Rdf4 {[%clk 0:02:09.5]} 20... e6 {[%clk 0:02:29.7]}
21. Ne4 {[%clk 0:02:04.1]} 21... Kg7 {[%clk 0:02:25.8]} 22. Ng5 {[%clk
0:01:56.2]} 22... Bd7 {[%clk 0:01:44.2]} 23. Rxf7+ {[%clk 0:01:53.5]} 23... Rxf7
{[%clk 0:01:40.1]} 24. Rxf7+ {[%clk 0:01:55.4]} 24... Kh6 {[%clk 0:01:40.1]} 25.
h4 {[%clk 0:01:55.1]} 25... Kh5 {[%clk 0:01:35.8]} 26. Rxd7 {[%clk 0:01:49.3]}
26... Kxh4 {[%clk 0:01:36.4]} 27. Nxe6 {[%clk 0:01:49.1]} 27... Re8 {[%clk
0:01:32.6]} 28. Rxb7 {[%clk 0:01:42.2]} 28... Rxe6 {[%clk 0:01:31.2]} 29. Bxe6
{[%clk 0:01:44.1]} 1

[Event "Torneo Nuevo Centro. Jornada 8"]
[Site "Chess.com"]
[Date "2020.08.07"]
[Round "6"]
[White "Montesinos Diaz, Luis"]
[Black "Bendayán Claros, Aaron"]
[Result "1-0"]
[WhiteElo "1876"]
[BlackElo "2032"]
[TimeControl "180+2"]
[EndTime "11:33:51 PDT"]
[Termination "Victoria de Gwiso_06 por abandono"]

1. d4 {[%clk 0:03:01.9]} 1... d5 {[%clk 0:03:00.7]} 2. Nf3 {[%clk 0:03:01.6]}
2... Nf6 {[%clk 0:03:01.1]} 3. e3 {[%clk 0:03:00.1]} 3... c5 {[%clk 0:03:01.1]}
4. b3 {[%clk 0:02:58.9]} 4... Nc6 {[%clk 0:02:59.1]} 5. Bb2 {[%clk 0:02:59.5]}
5... cxd4 {[%clk 0:03:00.2]} 6. exd4 {[%clk 0:02:59.9]} 6... g6 {[%clk
0:03:00.8]} 7. Bd3 {[%clk 0:03:00.9]} 7... Bg7 {[%clk 0:03:01.8]} 8. O-O {[%clk
0:03:02.2]} 8... O-O {[%clk 0:03:03]} 9. Nbd2 {[%clk 0:03:03.3]} 9... Bf5 {[%clk
0:03:01.3]} 10. Bxf5 {[%clk 0:03:02.7]} 10... gxf5 {[%clk 0:03:03.2]} 11. Ne5
{[%clk 0:03:03.1]} 11... Rc8 {[%clk 0:03:02.6]} 12. c4 {[%clk 0:02:47.4]} 12...
e6 {[%clk 0:03:02.6]} 13. Ndf3 {[%clk 0:02:39.3]} 13... Ne4 {[%clk 0:02:58]} 14.
Rc1 {[%clk 0:02:36.3]} 14... Qa5 {[%clk 0:02:43.4]} 15. a3 {[%clk 0:02:25.4]}
15... Nxe5 {[%clk 0:02:17.8]} 16. Nxe5 {[%clk 0:02:22.5]} 16... Bxe5 {[%clk
0:02:12.1]} 17. dxe5 {[%clk 0:02:23.4]} 17... dxc4 {[%clk 0:02:12.5]} 18. Rxc4
{[%clk 0:02:14.8]} 18... Rxc4 {[%clk 0:02:12.6]} 19. bxc4 {[%clk 0:02:16.7]}
19... Rd8 {[%clk 0:02:11.2]} 20. Qf3 {[%clk 0:02:15.1]} 20... Rd2 {[%clk
0:02:03.2]} 21. Bc1 {[%clk 0:02:12.4]} 21... Rc2 {[%clk 0:01:46.6]} 22. Bh6
{[%clk 0:02:11.5]} 22... Qxe5 {[%clk 0:01:45.3]} 23. Rd1 {[%clk 0:02:00.4]}
23... Qf6 {[%clk 0:01:33.9]} 24. Qf4 {[%clk 0:01:43.1]} 24... Qe7 {[%clk
0:01:07.7]} 25. Qb8+ {[%clk 0:01:41]} 1

[Event "Torneo Nuevo Centro. Jornada 8"]
[Site "Chess.com"]
[Date "2020.08.07"]
[Round "6"]
[White "Beneyto de Ramon, Guillermo"]
[Black "Miranda Calvo, Max Rodrigo"]
[Result "1-0"]
[WhiteElo "1652"]
[BlackElo "1344"]
[TimeControl "180+2"]
[EndTime "11:34:29 PDT"]
[Termination "Victoria de GUILLETE por abandono"]

1. c4 {[%clk 0:03:01.7]} 1... g6 {[%clk 0:02:54.3]} 2. Nc3 {[%clk 0:03:02.3]}
2... Bg7 {[%clk 0:02:54.9]} 3. g3 {[%clk 0:03:03.4]} 3... c6 {[%clk 0:02:53.1]}
4. Bg2 {[%clk 0:03:03.9]} 4... d6 {[%clk 0:02:53.4]} 5. Nf3 {[%clk 0:03:03.3]}
5... Bf5 {[%clk 0:02:53]} 6. d4 {[%clk 0:03:03.4]} 6... Nd7 {[%clk 0:02:52.1]}
7. Bf4 {[%clk 0:03:03.3]} 7... Ngf6 {[%clk 0:02:47.3]} 8. O-O {[%clk 0:03:01.6]}
8... O-O {[%clk 0:02:47]} 9. Nh4 {[%clk 0:03:02.2]} 9... Be6 {[%clk 0:02:45.7]}
10. d5 {[%clk 0:02:57.2]} 10... cxd5 {[%clk 0:02:45.9]} 11. cxd5 {[%clk
0:02:58.4]} 11... Bf5 {[%clk 0:02:27.7]} 12. e4 {[%clk 0:02:57.8]} 12... e5
{[%clk 0:02:22.6]} 13. Be3 {[%clk 0:02:53.4]} 13... Bg4 {[%clk 0:02:06.7]} 14.
f3 {[%clk 0:02:53.9]} 14... Bh5 {[%clk 0:02:07.1]} 15. g4 {[%clk 0:02:53.9]}
15... g5 {[%clk 0:02:08.2]} 16. Bxg5 {[%clk 0:02:53.5]} 16... Bg6 {[%clk
0:02:07.8]} 17. Nxg6 {[%clk 0:02:49]} 17... fxg6 {[%clk 0:02:06.3]} 18. Qd2
{[%clk 0:02:47.1]} 18... Rf7 {[%clk 0:01:59.3]} 19. Nb5 {[%clk 0:02:43.4]} 19...
a6 {[%clk 0:01:41.4]} 20. Nxd6 {[%clk 0:02:43.2]} 20... Qb6+ {[%clk 0:01:37]}
21. Be3 {[%clk 0:02:28]} 21... Qxd6 {[%clk 0:01:37.1]} 22. Qc3 {[%clk
0:02:26.1]} 22... Rff8 {[%clk 0:01:29.2]} 23. Rac1 {[%clk 0:02:26]} 23... Rfc8
{[%clk 0:01:15.5]} 24. Qxc8+ {[%clk 0:02:26]} 24... Rxc8 {[%clk 0:01:15.7]} 25.
Rxc8+ {[%clk 0:02:27.9]} 25... Kf7 {[%clk 0:01:16.4]} 26. g5 {[%clk 0:02:28.5]}
26... Ne8 {[%clk 0:01:14.7]} 27. Bh3 {[%clk 0:02:25.5]} 27... Nb6 {[%clk
0:00:52.6]} 28. Be6+ {[%clk 0:02:19.9]} 28... Ke7 {[%clk 0:00:49.4]} 29. f4
{[%clk 0:02:15]} 29... Nc7 {[%clk 0:00:45.3]} 30. fxe5 {[%clk 0:02:15.1]} 30...
Qxe5 {[%clk 0:00:45.7]} 31. Rf7+ {[%clk 0:02:15.7]} 31... Kd6 {[%clk 0:00:46]}
32. Rd8+ {[%clk 0:02:13.8]} 1

[Event "Torneo Nuevo Centro. Jornada 8"]
[Site "Chess.com"]
[Date "2020.08.07"]
[Round "6"]
[White "Martin Ayala, David"]
[Black "Pardo Ruiz, Carlos"]
[Result "0-1"]
[WhiteElo "1860"]
[BlackElo "1688"]
[TimeControl "180+2"]
[EndTime "11:35:18 PDT"]
[Termination "Victoria de Carlitoscarlsen por abandono"]

1. e4 {[%clk 0:03:01.9]} 1... Nf6 {[%clk 0:03:00.3]} 2. e5 {[%clk 0:02:56.8]}
2... Nd5 {[%clk 0:03:00.8]} 3. c4 {[%clk 0:02:54.2]} 3... Nb6 {[%clk 0:03:01.1]}
4. d4 {[%clk 0:02:50.5]} 4... d6 {[%clk 0:03:01.1]} 5. exd6 {[%clk 0:02:40.7]}
5... exd6 {[%clk 0:03:03]} 6. Nf3 {[%clk 0:02:27.7]} 6... Bg4 {[%clk 0:03:02.7]}
7. Be2 {[%clk 0:02:13.5]} 7... Be7 {[%clk 0:03:01.2]} 8. Be3 {[%clk 0:01:55.5]}
8... O-O {[%clk 0:03:01.2]} 9. Nc3 {[%clk 0:01:27.3]} 9... Nc6 {[%clk
0:03:01.1]} 10. O-O {[%clk 0:01:27.3]} 10... Bf6 {[%clk 0:03:01.3]} 11. Rc1
{[%clk 0:01:26.2]} 11... Bxf3 {[%clk 0:02:56.4]} 12. Bxf3 {[%clk 0:01:26.3]}
12... Nxc4 {[%clk 0:02:56.9]} 13. Nd5 {[%clk 0:01:26.2]} 13... Nxe3 {[%clk
0:02:54.9]} 14. Nxf6+ {[%clk 0:01:26.7]} 14... Qxf6 {[%clk 0:02:54.7]} 15. fxe3
{[%clk 0:01:27.4]} 15... Qg5 {[%clk 0:02:51.4]} 16. Qe2 {[%clk 0:01:19.7]} 16...
Rfe8 {[%clk 0:02:50.4]} 17. Rfe1 {[%clk 0:01:08.8]} 17... Nxd4 {[%clk
0:02:49.9]} 18. Qf2 {[%clk 0:01:06]} 18... Nxf3+ {[%clk 0:02:47.1]} 19. Qxf3
{[%clk 0:01:06.7]} 19... c6 {[%clk 0:02:47.9]} 20. Rcd1 {[%clk 0:01:06.9]} 20...
d5 {[%clk 0:02:47.9]} 21. Rd4 {[%clk 0:01:06.2]} 21... Re7 {[%clk 0:02:44.5]}
22. Rg4 {[%clk 0:01:06.3]} 22... Qe5 {[%clk 0:02:43.5]} 23. e4 {[%clk
0:01:04.4]} 23... Qxb2 {[%clk 0:02:41.4]} 24. Rf1 {[%clk 0:00:56.5]} 24... Qd4+
{[%clk 0:02:31.7]} 25. Kh1 {[%clk 0:00:55.9]} 25... dxe4 {[%clk 0:02:31.9]} 26.
Qg3 {[%clk 0:00:55.7]} 26... g6 {[%clk 0:02:29.6]} 27. Qh4 {[%clk 0:00:56.3]}
27... Qd3 {[%clk 0:02:22]} 28. Re1 {[%clk 0:00:50.1]} 28... Rae8 {[%clk
0:02:14.3]} 29. Rg3 {[%clk 0:00:46.1]} 29... Qd2 {[%clk 0:02:13.3]} 30. Rh3
{[%clk 0:00:46.8]} 30... h5 {[%clk 0:02:10]} 31. Rf1 {[%clk 0:00:42.2]} 31... e3
{[%clk 0:02:08.9]} 32. Re1 {[%clk 0:00:30.5]} 32... e2 {[%clk 0:02:08.1]} 33.
Rb3 {[%clk 0:00:31]} 33... Re4 {[%clk 0:02:01.3]} 34. Qg3 {[%clk 0:00:27]} 34...
Re3 {[%clk 0:01:56.6]} 35. Rxe3 {[%clk 0:00:26.9]} 35... Rxe3 {[%clk 0:01:58.5]}
36. Qb8+ {[%clk 0:00:27.3]} 36... Kh7 {[%clk 0:01:54.4]} 37. g4 {[%clk
0:00:20.4]} 37... Qxe1+ {[%clk 0:01:53.4]} 0

[Event "Torneo Nuevo Centro. Jornada 8"]
[Site "Chess.com"]
[Date "2020.08.07"]
[Round "6"]
[White "Birnoveanu, Petru"]
[Black "Conon, Catalin"]
[Result "1-0"]
[WhiteElo "1682"]
[BlackElo "1914"]
[TimeControl "180+2"]
[EndTime "11:36:36 PDT"]
[Termination "Victoria de piculet por jaque mate"]

1. e4 {[%clk 0:03:01.9]} 1... c5 {[%clk 0:03:00.9]} 2. c4 {[%clk 0:02:54.9]}
2... Nc6 {[%clk 0:03:01.8]} 3. Nc3 {[%clk 0:02:54]} 3... e6 {[%clk 0:03:02.3]}
4. f4 {[%clk 0:02:51.7]} 4... Nge7 {[%clk 0:03:03.1]} 5. Be2 {[%clk 0:02:48.7]}
5... g6 {[%clk 0:03:04.2]} 6. Bf3 {[%clk 0:02:49.1]} 6... Bg7 {[%clk 0:03:04.9]}
7. Nge2 {[%clk 0:02:48.9]} 7... O-O {[%clk 0:03:05.3]} 8. d3 {[%clk 0:02:49]}
8... Rb8 {[%clk 0:03:04.4]} 9. a4 {[%clk 0:02:48.8]} 9... a6 {[%clk 0:02:58.9]}
10. Rb1 {[%clk 0:02:49]} 10... d5 {[%clk 0:02:49.6]} 11. cxd5 {[%clk 0:02:47.8]}
11... exd5 {[%clk 0:02:51.5]} 12. Nxd5 {[%clk 0:02:33.7]} 12... Nxd5 {[%clk
0:02:52.4]} 13. exd5 {[%clk 0:02:34]} 13... Nb4 {[%clk 0:02:53.6]} 14. Qb3
{[%clk 0:02:18.6]} 14... Bf5 {[%clk 0:02:26]} 15. O-O {[%clk 0:02:08.7]} 15...
Nxd3 {[%clk 0:02:24.6]} 16. g4 {[%clk 0:01:56.8]} 16... c4 {[%clk 0:01:59.7]}
17. Qxc4 {[%clk 0:01:39.8]} 17... Qb6+ {[%clk 0:01:59.7]} 18. Kg2 {[%clk
0:01:29.2]} 18... Nxf4+ {[%clk 0:02:00.6]} 19. Bxf4 {[%clk 0:01:25]} 19... Bxb1
{[%clk 0:02:02.5]} 20. Rxb1 {[%clk 0:01:24.7]} 20... Rbc8 {[%clk 0:02:01.9]} 21.
Qd3 {[%clk 0:01:19.5]} 21... Qb4 {[%clk 0:01:44.9]} 22. b3 {[%clk 0:01:11.2]}
22... Rfe8 {[%clk 0:01:32.1]} 23. Bd2 {[%clk 0:01:07.5]} 23... Qd6 {[%clk
0:01:31.8]} 24. Ng3 {[%clk 0:01:01.7]} 24... Rcd8 {[%clk 0:00:45.8]} 25. Rd1
{[%clk 0:01:01.2]} 25... Be5 {[%clk 0:00:32.2]} 26. Bg5 {[%clk 0:00:54.2]} 26...
f6 {[%clk 0:00:31.5]} 27. Be3 {[%clk 0:00:44.9]} 27... Bxg3 {[%clk 0:00:15.8]}
28. hxg3 {[%clk 0:00:44.7]} 28... Kf7 {[%clk 0:00:14.7]} 29. Bf4 {[%clk
0:00:42]} 29... Qc5 {[%clk 0:00:15.7]} 30. Rc1 {[%clk 0:00:36.6]} 30... Qa3
{[%clk 0:00:11.4]} 31. d6 {[%clk 0:00:29.8]} 31... g5 {[%clk 0:00:08.1]} 32.
Rc7+ {[%clk 0:00:27.9]} 32... Kg8 {[%clk 0:00:07.2]} 33. Qxh7+ {[%clk 0:00:22]}
33... Kf8 {[%clk 0:00:07.5]} 34. Qh8# {[%clk 0:00:21.4]} 1

[Event "Torneo Nuevo Centro. Jornada 8"]
[Site "Chess.com"]
[Date "2020.08.07"]
[Round "6"]
[White "Carbonell Bofill, Carlos Eloy"]
[Black "Gimenez Saiz, Jose Raul"]
[Result "1-0"]
[WhiteElo "1959"]
[BlackElo "1736"]
[TimeControl "180+2"]
[EndTime "11:36:38 PDT"]
[Termination "Victoria de MFCARLOS por abandono"]

1. d4 {[%clk 0:03:01.9]} 1... d6 {[%clk 0:02:48.1]} 2. Bf4 {[%clk 0:03:00.4]}
2... Nd7 {[%clk 0:02:48.1]} 3. Nf3 {[%clk 0:03:00.1]} 3... g6 {[%clk 0:02:45.3]}
4. h4 {[%clk 0:02:55]} 4... h5 {[%clk 0:02:28.3]} 5. e4 {[%clk 0:02:39.5]} 5...
Bg7 {[%clk 0:02:27.4]} 6. e5 {[%clk 0:02:40.3]} 6... dxe5 {[%clk 0:02:15.8]} 7.
dxe5 {[%clk 0:02:42.2]} 7... e6 {[%clk 0:02:06.5]} 8. Nc3 {[%clk 0:02:32.9]}
8... Ne7 {[%clk 0:02:06.2]} 9. Bd3 {[%clk 0:01:52.1]} 9... b6 {[%clk 0:02:04]}
10. Be4 {[%clk 0:01:52.1]} 10... Rb8 {[%clk 0:02:03.9]} 11. Qd2 {[%clk
0:01:35.6]} 11... Nc5 {[%clk 0:01:42.8]} 12. Qxd8+ {[%clk 0:01:34.9]} 12... Kxd8
{[%clk 0:01:43.4]} 13. O-O-O+ {[%clk 0:01:33.4]} 13... Ke8 {[%clk 0:01:44.3]}
14. Bg5 {[%clk 0:01:00.2]} 14... Nxe4 {[%clk 0:01:43.9]} 15. Nxe4 {[%clk
0:00:59.6]} 15... Nc6 {[%clk 0:01:19.1]} 16. Nf6+ {[%clk 0:00:57.7]} 16... Bxf6
{[%clk 0:01:18.7]} 17. Bxf6 {[%clk 0:00:59]} 17... Rg8 {[%clk 0:01:11.5]} 18.
Nd4 {[%clk 0:00:21.4]} 18... Bb7 {[%clk 0:01:08.1]} 19. Rh3 {[%clk 0:00:15.6]}
19... Nxd4 {[%clk 0:00:53.3]} 20. Rxd4 {[%clk 0:00:17.5]} 20... c5 {[%clk
0:00:52.2]} 21. Rd6 {[%clk 0:00:17.8]} 21... Bxg2 {[%clk 0:00:48.2]} 22. Rhd3
{[%clk 0:00:18.5]} 22... Bd5 {[%clk 0:00:48.7]} 23. c4 {[%clk 0:00:19.4]} 23...
g5 {[%clk 0:00:17]} 24. hxg5 {[%clk 0:00:16.7]} 24... h4 {[%clk 0:00:11.3]} 25.
cxd5 {[%clk 0:00:17.6]} 25... h3 {[%clk 0:00:10.7]} 26. dxe6 {[%clk 0:00:16.3]}
26... fxe6 {[%clk 0:00:11.2]} 27. Rxe6+ {[%clk 0:00:15.5]} 27... Kf7 {[%clk
0:00:11.9]} 28. Re7+ {[%clk 0:00:16.8]} 28... Kg6 {[%clk 0:00:12.4]} 29. Rxh3
{[%clk 0:00:18]} 29... Kf5 {[%clk 0:00:10]} 30. Rf3+ {[%clk 0:00:18.5]} 30...
Ke4 {[%clk 0:00:06.8]} 31. Re3+ {[%clk 0:00:19]} 31... Kf5 {[%clk 0:00:07.4]}
32. e6 {[%clk 0:00:19.3]} 1

[Event "Torneo Nuevo Centro. Jornada 8"]
[Site "Chess.com"]
[Date "2020.08.07"]
[Round "6"]
[White "Roca Cruz, Rafael"]
[Black "Zamora Soler, Raul"]
[Result "0-1"]
[WhiteElo "1790"]
[BlackElo "1882"]
[TimeControl "180+2"]
[EndTime "11:37:28 PDT"]
[Termination "Victoria de rzamora80 por abandono"]

1. d4 {[%clk 0:03:01.1]} 1... d5 {[%clk 0:03:00.9]} 2. c4 {[%clk 0:03:02.1]}
2... e6 {[%clk 0:03:01.3]} 3. Nc3 {[%clk 0:03:03.3]} 3... Nf6 {[%clk 0:03:02.4]}
4. Bg5 {[%clk 0:03:04.2]} 4... Be7 {[%clk 0:03:03.1]} 5. cxd5 {[%clk 0:03:05.6]}
5... exd5 {[%clk 0:02:59.3]} 6. e3 {[%clk 0:03:06]} 6... c6 {[%clk 0:03:00.4]}
7. Bd3 {[%clk 0:03:06.9]} 7... Nbd7 {[%clk 0:02:57.5]} 8. Qc2 {[%clk 0:03:05.9]}
8... h6 {[%clk 0:02:57.7]} 9. Bh4 {[%clk 0:03:06.9]} 9... O-O {[%clk 0:02:58.4]}
10. Nge2 {[%clk 0:03:08.1]} 10... Re8 {[%clk 0:02:59.4]} 11. f3 {[%clk
0:03:08.8]} 11... Nf8 {[%clk 0:02:59.4]} 12. O-O {[%clk 0:03:07.2]} 12... Nh5
{[%clk 0:02:50.1]} 13. Bxe7 {[%clk 0:02:56.9]} 13... Qxe7 {[%clk 0:02:50.9]} 14.
e4 {[%clk 0:02:58.1]} 14... Nf6 {[%clk 0:02:22.9]} 15. e5 {[%clk 0:02:58.3]}
15... N6d7 {[%clk 0:02:22.7]} 16. f4 {[%clk 0:02:52.5]} 16... Nb6 {[%clk
0:02:22.3]} 17. b3 {[%clk 0:02:50.6]} 17... Bg4 {[%clk 0:02:20.5]} 18. Rae1
{[%clk 0:02:49.2]} 18... Rac8 {[%clk 0:02:13.8]} 19. Kh1 {[%clk 0:02:24.8]}
19... c5 {[%clk 0:02:13.3]} 20. Nb5 {[%clk 0:01:53.3]} 20... cxd4 {[%clk
0:02:02]} 21. Qb2 {[%clk 0:01:54.2]} 21... Bxe2 {[%clk 0:01:58.4]} 22. Rxe2
{[%clk 0:01:38.5]} 22... a6 {[%clk 0:01:17.5]} 23. Nd6 {[%clk 0:01:39.3]} 23...
Rc3 {[%clk 0:01:17.4]} 24. Nxe8 {[%clk 0:01:35.7]} 24... Qxe8 {[%clk 0:01:18.2]}
25. Bf5 {[%clk 0:01:25.1]} 25... g6 {[%clk 0:01:08.5]} 26. Bg4 {[%clk
0:01:24.5]} 26... h5 {[%clk 0:01:08.7]} 27. Bf3 {[%clk 0:01:25.4]} 27... Qb5
{[%clk 0:00:45.4]} 28. Rd1 {[%clk 0:01:16]} 28... Re3 {[%clk 0:00:39.5]} 29.
Red2 {[%clk 0:00:59.9]} 29... d3 {[%clk 0:00:30.6]} 30. Qd4 {[%clk 0:00:32.5]}
30... Re2 {[%clk 0:00:30.9]} 31. Bxe2 {[%clk 0:00:32.6]} 31... dxe2 {[%clk
0:00:30.7]} 32. Re1 {[%clk 0:00:33.4]} 32... Ne6 {[%clk 0:00:30]} 33. Qf2 {[%clk
0:00:29.5]} 33... d4 {[%clk 0:00:24.7]} 34. f5 {[%clk 0:00:25.6]} 34... gxf5
{[%clk 0:00:24.8]} 35. Qxf5 {[%clk 0:00:26.9]} 35... d3 {[%clk 0:00:22.8]} 36.
Qxh5 {[%clk 0:00:27.6]} 36... Nd5 {[%clk 0:00:20.3]} 37. Rxd3 {[%clk 0:00:24.8]}
37... Qxd3 {[%clk 0:00:19.5]} 38. Qg4+ {[%clk 0:00:23.7]} 38... Kf8 {[%clk
0:00:17.7]} 39. h4 {[%clk 0:00:22.9]} 39... Ndf4 {[%clk 0:00:16.6]} 40. g3
{[%clk 0:00:16.3]} 40... Qe4+ {[%clk 0:00:15.9]} 0

[Event "Torneo Nuevo Centro. Jornada 8"]
[Site "Chess.com"]
[Date "2020.08.07"]
[Round "6"]
[White "Martínez Escandell, Alfonso"]
[Black "Marques Montolio, Luis"]
[Result "1-0"]
[WhiteElo "1831"]
[BlackElo "1425"]
[TimeControl "180+2"]
[EndTime "11:37:36 PDT"]
[Termination "Victoria de Alfonso10 por abandono"]

1. e4 {[%clk 0:03:01.9]} 1... d5 {[%clk 0:02:59.6]} 2. exd5 {[%clk 0:03:02.7]}
2... Qxd5 {[%clk 0:03:01.5]} 3. Nc3 {[%clk 0:03:03.5]} 3... Qa5 {[%clk
0:03:03.1]} 4. Be2 {[%clk 0:03:03.4]} 4... c6 {[%clk 0:03:04.5]} 5. d3 {[%clk
0:03:04.3]} 5... Bf5 {[%clk 0:03:05.8]} 6. Bd2 {[%clk 0:03:05.5]} 6... e6 {[%clk
0:03:06.2]} 7. Nf3 {[%clk 0:03:06.3]} 7... Qc7 {[%clk 0:03:07.7]} 8. O-O {[%clk
0:03:06.2]} 8... Nf6 {[%clk 0:03:08.9]} 9. g3 {[%clk 0:03:07.1]} 9... Bd6 {[%clk
0:03:08.3]} 10. a4 {[%clk 0:03:04.9]} 10... O-O {[%clk 0:03:06.5]} 11. Nh4
{[%clk 0:03:02.5]} 11... Bh3 {[%clk 0:03:01.4]} 12. Re1 {[%clk 0:03:03.3]} 12...
Be7 {[%clk 0:02:58.3]} 13. Bf4 {[%clk 0:02:59.9]} 13... Bd6 {[%clk 0:02:57.9]}
14. Bxd6 {[%clk 0:03:00.2]} 14... Qxd6 {[%clk 0:02:59.8]} 15. Bf1 {[%clk
0:03:01.4]} 15... Bxf1 {[%clk 0:02:56.5]} 16. Rxf1 {[%clk 0:03:02.3]} 16... Nbd7
{[%clk 0:02:52.6]} 17. Ng2 {[%clk 0:03:02.9]} 17... Nd5 {[%clk 0:02:52.5]} 18.
Ne4 {[%clk 0:03:02.6]} 18... Qe7 {[%clk 0:02:50.6]} 19. Ne3 {[%clk 0:03:00.4]}
19... N7f6 {[%clk 0:02:45.4]} 20. Nxf6+ {[%clk 0:02:57]} 20... Nxf6 {[%clk
0:02:42.8]} 21. Qf3 {[%clk 0:02:55.2]} 21... Rfd8 {[%clk 0:02:42.9]} 22. Rfe1
{[%clk 0:02:55.9]} 22... Rd7 {[%clk 0:02:41.9]} 23. Nc4 {[%clk 0:02:55.7]} 23...
Rad8 {[%clk 0:02:31.8]} 24. b3 {[%clk 0:02:54.6]} 24... Qc5 {[%clk 0:02:12.8]}
25. a5 {[%clk 0:02:49.3]} 25... Rd5 {[%clk 0:02:01.1]} 26. a6 {[%clk 0:02:42.3]}
26... b5 {[%clk 0:01:52.8]} 27. Ne3 {[%clk 0:02:42]} 27... Re5 {[%clk
0:01:41.9]} 28. Red1 {[%clk 0:02:39]} 28... Nd5 {[%clk 0:01:32.3]} 29. Nxd5
{[%clk 0:02:28.5]} 29... Rexd5 {[%clk 0:01:24.5]} 30. Qe2 {[%clk 0:02:26.7]}
30... Qc3 {[%clk 0:01:20.5]} 31. Rdc1 {[%clk 0:02:23]} 31... b4 {[%clk
0:01:09.3]} 32. Qe3 {[%clk 0:02:22.5]} 32... c5 {[%clk 0:01:07.4]} 33. h4 {[%clk
0:02:19.5]} 33... Rd4 {[%clk 0:01:00.1]} 34. Ra5 {[%clk 0:02:19.3]} 34... R8d6
{[%clk 0:00:44.2]} 35. Rb5 {[%clk 0:02:19.3]} 35... h6 {[%clk 0:00:35]} 36. Rb8+
{[%clk 0:02:09.7]} 36... Rd8 {[%clk 0:00:34.5]} 37. Rb7 {[%clk 0:02:10.3]} 37...
R8d7 {[%clk 0:00:21.8]} 38. Qf3 {[%clk 0:01:56.3]} 38... R4d5 {[%clk 0:00:20.2]}
39. Qe4 {[%clk 0:01:45.3]} 39... Qb2 {[%clk 0:00:18.9]} 40. Qf4 {[%clk
0:01:36.3]} 40... Qf6 {[%clk 0:00:17.5]} 41. Qb8+ {[%clk 0:01:33.9]} 41... Kh7
{[%clk 0:00:16.8]} 42. Qxa7 {[%clk 0:01:34]} 42... Rxb7 {[%clk 0:00:12.9]} 43.
axb7 {[%clk 0:01:34.7]} 43... Qb2 {[%clk 0:00:13.5]} 44. Rf1 {[%clk 0:01:31.4]}
44... Rd8 {[%clk 0:00:12.4]} 45. b8=Q {[%clk 0:01:31.6]} 45... Rxb8 {[%clk
0:00:14.2]} 46. Qxb8 {[%clk 0:01:33]} 46... Qxc2 {[%clk 0:00:15.5]} 47. Qb5
{[%clk 0:01:27]} 47... Qxb3 {[%clk 0:00:15.3]} 48. Rc1 {[%clk 0:01:26.1]} 48...
Qb2 {[%clk 0:00:13.9]} 49. Rxc5 {[%clk 0:01:25.5]} 49... Qb1+ {[%clk 0:00:10.1]}
50. Kg2 {[%clk 0:01:26.2]} 50... Qd1 {[%clk 0:00:09.4]} 51. Rc7 {[%clk 0:01:16]}
51... Qg4 {[%clk 0:00:06.9]} 52. Rc4 {[%clk 0:01:05.8]} 52... Qd1 {[%clk
0:00:05]} 53. Qxb4 {[%clk 0:01:06.2]} 53... Qxd3 {[%clk 0:00:05.3]} 54. Rf4
{[%clk 0:01:06.6]} 54... Qd5+ {[%clk 0:00:03.5]} 55. Qe4+ {[%clk 0:01:06.9]}
55... Qxe4+ {[%clk 0:00:03.4]} 56. Rxe4 {[%clk 0:01:08.8]} 1